fUST/lending_fUST_20251001
["ID","MTS","AMOUNT","RATE_DAILY","PERIOD"]
[388651175,1759300243274,-500.0,0.00019999,2]
[388651176,1759300243283,-500.0,0.00019999,2]
[388651177,1759300243292,-524.78261851,0.00019999,2]
[388651178,1759300243302,-484.51889215,0.00019999,2]
[388651179,1759300243311,-485.34237365,0.00019999,2]
[388651180,1759300243320,-482.97861812,0.00019999,2]
[388651181,1759300243330,-500.0,0.00019999,2]
[388651182,1759300243339,-500.0,0.00019999,2]
[388651183,1759300243348,-500.0,0.00019999,2]
[388651184,1759300243357,-484.00179851,0.00019999,2]
[388651185,1759300243366,-524.18,0.00019999,2]
[388651186,1759300243375,-500.0,0.00019999,2]
[388651187,1759300243384,-500.0,0.00019999,2]
[388651188,1759300243394,-500.0,0.00019999,2]
[388651189,1759300243406,-500.0,0.00019999,2]
[388651190,1759300243415,-500.0,0.00019999,2]
[388651191,1759300243425,-500.0,0.00019999,2]
[388651192,1759300243434,-646.25,0.00019999,2]
[388651193,1759300243443,-539.33,0.00019999,2]
[388651194,1759300243453,-500.0,0.00019999,2]
[388651195,1759300243462,-480.4531984,0.00019999,2]
[388651196,1759300243471,-657.79,0.00019999,2]
[388651197,1759300243481,-500.0,0.00019999,2]
[388651198,1759300243491,-500.0,0.00019999,2]
[388651199,1759300243500,-500.0,0.00019999,2]
[388651200,1759300243509,-1606.71,0.00019999,2]
[388651201,1759300243519,-500.0,0.00019999,2]
[388651202,1759300243529,-500.0,0.00019999,2]
[388651203,1759300243539,-481.57325387,0.00019999,2]
[388651204,1759300243548,-500.0,0.00019999,2]
[388651205,1759300243558,-484.04416984,0.00019999,2]
[388651206,1759300243567,-500.0,0.00019999,2]
[388651207,1759300243576,-686.68,0.00019999,2]
[388651208,1759300243587,-2286.35,0.00019999,2]
[388651209,1759300243596,-481.65463056,0.00019999,2]
[388651210,1759300243606,-1437.67,0.00019999,2]
[388651211,1759300243617,-500.0,0.00019999,2]
[388651212,1759300243626,-482.536392,0.00019999,2]
[388651213,1759300243635,-483.34877656,0.00019999,2]
[388651214,1759300243647,-484.16129657,0.00019999,2]
[388651215,1759300243656,-1047.18,0.00019999,2]
[388651216,1759300243665,-500.0,0.00019999,2]
[388651217,1759300243676,-484.1159967,0.00019999,2]
[388651218,1759300243685,-483.43386432,0.00019999,2]
[388651219,1759300243694,-1014.26,0.00019999,2]
[388651220,1759300243703,-484.69684728,0.00019999,2]
[388651221,1759300243712,-500.0,0.00019999,2]
[388651222,1759300243721,-500.0,0.00019999,2]
[388651223,1759300243737,-500.0,0.00019999,2]
[388651224,1759300243746,-500.0,0.00019999,2]
[388651225,1759300243755,-2286.01,0.00019999,2]
[388651226,1759300243765,-485.63773882,0.00019999,2]
[388651227,1759300243776,-500.0,0.00019999,2]
[388651228,1759300243785,-482.44381804,0.00019999,2]
[388651229,1759300243795,-483.46988149,0.00019999,2]
[388651230,1759300243808,-500.0,0.00019999,2]
[388651231,1759300243817,-2031.62,0.00019999,2]
[388651232,1759300243826,-266.77318003,0.00019999,2]
[388651233,1759300243836,-500.0,0.00019999,2]
[388651234,1759300243846,-500.0,0.00019999,2]
[388651236,1759300243855,-500.0,0.00019999,2]
[388651237,1759300243864,-500.0,0.00019999,2]
[388651238,1759300243873,-2995.14165046,0.00020018,2]
[388651239,1759300243883,-320.0,0.00020056,2]
[388651240,1759300243892,-482.62101963,0.00020068,2]
[388651241,1759300243901,-500.0,0.00020068,2]
[388651242,1759300243911,-500.0,0.00020068,2]
[388651243,1759300243920,-500.0,0.00020068,2]
[388651244,1759300243930,-500.0,0.00020068,2]
[388651245,1759300243939,-486.86869997,0.00020068,2]
[388651246,1759300243948,-2995.14165046,0.00020138,2]
[388651247,1759300243958,-2995.14165046,0.00020257,2]
[388651248,1759300243967,-250.0,0.00020258,2]
[388651249,1759300243976,-250.0,0.00020258,2]
[388651251,1759300243985,-250.0,0.00020258,2]
[388651252,1759300243995,-250.0,0.00020258,2]
[388651253,1759300244003,-250.0,0.00020258,2]
[388651254,1759300244012,-250.0,0.00020258,2]
[388651255,1759300244021,-250.0,0.00020258,2]
[388651256,1759300244030,-250.0,0.00020258,2]
[388651257,1759300244039,-250.0,0.00020258,2]
[388651258,1759300244050,-250.0,0.00020258,2]
[388651259,1759300244061,-250.0,0.00020258,2]
[388651260,1759300244070,-250.0,0.00020258,2]
[388651261,1759300244079,-250.0,0.00020258,2]
[388651262,1759300244089,-250.0,0.00020258,2]
[388651263,1759300244099,-500.0,0.00020267,2]
[388651264,1759300244107,-500.0,0.00020267,2]
[388651265,1759300244117,-500.0,0.00020267,2]
[388651266,1759300244126,-500.0,0.00020267,2]
[388651267,1759300244135,-466.52147331,0.00020267,2]
[388651268,1759300244144,-500.0,0.00020267,2]
[388651269,1759300244153,-500.0,0.00020269,2]
[388651270,1759300244163,-500.0,0.00020269,2]
[388651271,1759300244172,-500.0,0.00020269,2]
[388651272,1759300244181,-633.83,0.00020269,2]
[388651273,1759300244190,-500.0,0.00020269,2]
[388651274,1759300244200,-464.60735704,0.00020269,2]
[388651275,1759300244209,-1834.41,0.00020269,2]
[388651276,1759300244218,-2584.74,0.00020269,2]
[388651277,1759300244227,-500.0,0.00020269,2]
[388651278,1759300244237,-500.0,0.00020269,2]
[388651279,1759300244246,-500.0,0.00020269,2]
[388651280,1759300244255,-500.0,0.00020269,2]
[388651281,1759300244264,-500.0,0.00020269,2]
[388651282,1759300244273,-3037.8,0.00020269,2]
[388651283,1759300244282,-1577.62,0.00020269,2]
[388651284,1759300244291,-1290.34,0.00020269,2]
[388651285,1759300244300,-990.8,0.00020269,2]
[388651286,1759300244309,-606.82,0.00020269,2]
[388651287,1759300244319,-624.91,0.00020269,2]
[388651288,1759300244328,-2838.9,0.00020269,2]
[388651289,1759300244338,-500.0,0.00020269,2]
[388651290,1759300244347,-500.0,0.00020269,2]
[388651291,1759300244432,-500.0,0.00020269,2]
[388651292,1759300244450,-500.0,0.00020269,2]
[388651293,1759300244460,-455.28681015,0.00020269,2]
[388651294,1759300244469,-2208.54,0.00020269,2]
[388651295,1759300244478,-500.0,0.00020269,2]
[388651296,1759300244487,-500.0,0.0002027,2]
[388651297,1759300244496,-500.0,0.0002027,2]
[388651298,1759300244506,-500.0,0.0002027,2]
[388651299,1759300244515,-500.0,0.0002027,2]
[388651301,1759300244524,-500.0,0.0002027,2]
[388651303,1759300244533,-484.54104771,0.0002027,2]
[388651304,1759300244542,-976.71,0.0002027,2]
[388651305,1759300244551,-486.33620542,0.0002027,2]
[388651306,1759300244560,-500.0,0.0002027,2]
[388651307,1759300244570,-500.0,0.0002027,2]
[388651308,1759300244579,-500.0,0.0002027,2]
[388651310,1759300244589,-500.0,0.0002027,2]
[388651311,1759300244598,-613.57088258,0.0002027,2]
[388651312,1759300244608,-500.0,0.0002027,2]
[388651313,1759300244619,-532.24,0.0002027,2]
[388651314,1759300244628,-696.54,0.0002027,2]
[388651315,1759300244638,-599.84,0.0002027,2]
[388651316,1759300244648,-500.0,0.0002027,2]
[388651317,1759300244658,-500.0,0.0002027,2]
[388651318,1759300244669,-481.98255155,0.0002027,2]
[388651319,1759300244679,-1595.27,0.0002027,2]
[388651320,1759300244689,-1044.96,0.0002027,2]
[388651321,1759300244699,-816.6,0.0002027,2]
[388651322,1759300244708,-461.22038527,0.0002027,2]
[388651323,1759300244719,-500.0,0.0002027,2]
[388651324,1759300244731,-500.0,0.0002027,2]
[388651325,1759300244741,-2133.99,0.0002027,2]
[388651326,1759300244750,-790.26,0.0002027,2]
[388651327,1759300244759,-500.0,0.0002027,2]
[388651328,1759300244771,-500.0,0.0002027,2]
[388651329,1759300244780,-1073.26,0.0002027,2]
[388651330,1759300244790,-2985.05,0.0002027,2]
[388651331,1759300244799,-1203.65,0.0002027,2]
[388651332,1759300244812,-500.0,0.0002027,2]
[388651333,1759300244822,-1345.4,0.0002027,2]
[388651334,1759300244831,-500.0,0.0002027,2]
[388651335,1759300244841,-1844.27,0.0002027,2]
[388651336,1759300244850,-744.0,0.0002027,2]
[388651337,1759300244859,-500.0,0.0002027,2]
[388651338,1759300244868,-2722.47,0.0002027,2]
[388651339,1759300244878,-481.47495896,0.0002027,2]
[388651340,1759300244887,-704.37,0.0002027,2]
[388651341,1759300244896,-643.28,0.0002027,2]
[388651342,1759300244905,-2310.74,0.0002027,2]
[388651343,1759300244915,-500.0,0.0002027,2]
[388651344,1759300244924,-588.85,0.0002027,2]
[388651345,1759300244933,-591.97,0.0002027,2]
[388651346,1759300244942,-738.55,0.0002027,2]
[388651347,1759300244951,-1055.04,0.0002027,2]
[388651348,1759300244960,-860.04,0.0002027,2]
[388651349,1759300244969,-500.0,0.0002027,2]
[388651350,1759300244979,-500.0,0.0002027,2]
[388651351,1759300244988,-500.0,0.0002027,2]
[388651352,1759300244997,-487.48246391,0.0002027,2]
[388651353,1759300245006,-2129.67,0.0002027,2]
[388651354,1759300245015,-179.29704954,0.0002027,2]
[388651355,1759300245025,-594.42,0.0002027,2]
[388651356,1759300245034,-500.0,0.0002027,2]
[388651357,1759300245043,-1943.54,0.0002027,2]
[388651358,1759300245052,-3021.33,0.0002027,2]
[388651359,1759300245061,-542.34,0.0002027,2]
[388651360,1759300245070,-500.0,0.00020271,2]
[388651361,1759300245079,-277.67465976,0.00020271,2]
[388651362,1759300245088,-500.0,0.00020271,2]
[388651363,1759300245097,-500.0,0.00020271,2]
[388651364,1759300245106,-483.29084183,0.00020271,2]
[388651365,1759300245117,-500.0,0.00020271,2]
[388651366,1759300245126,-485.64929596,0.00020271,2]
[388651367,1759300245135,-588.02711465,0.00020271,2]
[388651368,1759300245145,-346.71906972,0.00020271,2]
[388651369,1759300245155,-500.0,0.00020271,2]
[388651370,1759300245165,-481.67357881,0.00020271,2]
[388651371,1759300245174,-462.28514144,0.00020271,2]
[388651372,1759300245184,-500.0,0.00020271,2]
[388651373,1759300245194,-500.0,0.00020271,2]
[388651374,1759300245204,-489.04865313,0.00020271,2]
[388651375,1759300245214,-500.0,0.00020271,2]
[388651376,1759300245223,-500.0,0.00020271,2]
[388651377,1759300245233,-1326.54,0.00020271,2]
[388651378,1759300245243,-500.0,0.00020271,2]
[388651379,1759300245253,-500.0,0.00020271,2]
[388651380,1759300245263,-500.0,0.00020271,2]
[388651381,1759300245272,-1228.09,0.00020271,2]
[388651382,1759300245282,-523.58,0.00020271,2]
[388651383,1759300245291,-503.71,0.00020271,2]
[388651384,1759300245300,-500.0,0.00020271,2]
[388651385,1759300245311,-500.0,0.00020271,2]
[388651386,1759300245319,-205.77510443,0.00020271,2]
[388651387,1759300245328,-655.06,0.00020271,2]
[388651388,1759300245337,-500.0,0.00020271,2]
[388651389,1759300245348,-500.0,0.00020271,2]
[388651390,1759300245358,-500.0,0.00020271,2]
[388651391,1759300245368,-1189.11,0.00020271,2]
[388651392,1759300245378,-1363.71,0.00020271,2]
[388651393,1759300245388,-509.24,0.00020271,2]
[388651394,1759300245397,-500.0,0.00020271,2]
[388651395,1759300245406,-500.0,0.00020271,2]
[388651396,1759300245415,-600.5,0.00020271,2]
[388651397,1759300245425,-616.41,0.00020271,2]
[388651398,1759300245434,-500.0,0.00020271,2]
[388651399,1759300245444,-1174.06,0.00020271,2]
[388651400,1759300245454,-500.0,0.00020271,2]
[388651401,1759300245464,-462.98672263,0.00020271,2]
[388651402,1759300245473,-775.36,0.00020271,2]
[388651403,1759300245483,-184.27094257,0.00020271,2]
[388651404,1759300245492,-500.0,0.00020271,2]
[388651405,1759300245501,-900.61,0.00020271,2]
[388651406,1759300245511,-767.43,0.00020271,2]
[388651407,1759300245520,-500.0,0.00020271,2]
[388651408,1759300245530,-775.18,0.00020271,2]
[388651409,1759300245539,-463.80722195,0.00020271,2]
[388651410,1759300245548,-558.56,0.00020271,2]
[388651411,1759300245557,-709.03,0.00020271,2]
[388651412,1759300245567,-500.0,0.00020271,2]
[388651413,1759300245576,-460.0,0.00020271,2]
[388651414,1759300245586,-609.6,0.00020271,2]
[388651415,1759300245595,-466.23185018,0.00020271,2]
[388651416,1759300245606,-556.02,0.00020271,2]
[388651417,1759300245615,-465.08238634,0.00020271,2]
[388651418,1759300245626,-814.04,0.00020271,2]
[388651419,1759300245639,-1000.92,0.00020271,2]
[388651420,1759300245648,-1230.23,0.00020271,2]
[388651421,1759300245657,-500.0,0.00020271,2]
[388651422,1759300245666,-1305.99,0.00020271,2]
[388651423,1759300245675,-694.39,0.00020271,2]
[388651424,1759300245685,-555.89,0.00020271,2]
[388651425,1759300245695,-512.35,0.00020271,2]
[388651426,1759300245704,-500.0,0.00020271,2]
[388651427,1759300245713,-440.0,0.00020271,2]
[388651428,1759300245723,-444.08824792,0.00020271,2]
[388651429,1759300245738,-848.29,0.00020271,2]
[388651430,1759300245749,-2483.05,0.00020271,2]
[388651431,1759300245759,-500.0,0.00020271,2]
[388651432,1759300245768,-500.0,0.00020271,2]
[388651433,1759300245778,-1323.84,0.00020271,2]
[388651434,1759300245787,-1221.22,0.00020271,2]
[388651435,1759300245798,-1683.66,0.00020271,2]
[388651436,1759300245808,-500.0,0.00020271,2]
[388651437,1759300245818,-893.56,0.00020271,2]
[388651438,1759300245827,-1673.81,0.00020271,2]
[388651439,1759300245836,-453.32245917,0.00020271,2]
[388651440,1759300245845,-500.0,0.00020271,2]
[388651441,1759300245854,-1460.82,0.00020271,2]
[388651442,1759300245863,-847.13,0.00020271,2]
[388651443,1759300245872,-500.0,0.00020271,2]
[388651444,1759300245882,-460.0,0.00020271,2]
[388651445,1759300245891,-500.0,0.00020271,2]
[388651446,1759300245900,-500.0,0.00020271,2]
[388651447,1759300245909,-2814.77,0.00020271,2]
[388651448,1759300245918,-500.0,0.00020271,2]
[388651449,1759300245927,-500.0,0.00020271,2]
[388651450,1759300245935,-500.0,0.00020271,2]
[388651451,1759300245944,-500.0,0.00020271,2]
[388651452,1759300245953,-500.0,0.00020271,2]
[388651453,1759300246045,-816.61,0.00020271,2]
[388651454,1759300246055,-649.89,0.00020271,2]
[388651455,1759300246064,-500.0,0.00020271,2]
[388651456,1759300246073,-1006.68,0.00020271,2]
[388651457,1759300246082,-151.0,0.00020272,2]
[388651458,1759300246091,-199.31845379,0.00020272,2]
[388651459,1759300246100,-151.0,0.00020272,2]
[388651460,1759300246110,-199.44244335,0.00020272,2]
[388651461,1759300246119,-199.14160081,0.00020272,2]
[388651463,1759300246128,-439.0,0.00020272,2]
[388651464,1759300246138,-151.0,0.00020272,2]
[388651465,1759300246147,-151.0,0.00020272,2]
[388651466,1759300246156,-278.10382462,0.00020272,2]
[388651467,1759300246165,-500.0,0.00020272,2]
[388651468,1759300246174,-3416.19,0.00020272,2]
[388651469,1759300246183,-491.19603644,0.00020272,2]
[388651470,1759300246192,-943.13,0.00020272,2]
[388651471,1759300246201,-500.0,0.00020272,2]
[388651472,1759300246210,-546.02,0.00020272,2]
[388651473,1759300246220,-500.0,0.00020272,2]
[388651474,1759300246229,-500.0,0.00020272,2]
[388651475,1759300246239,-446.59699478,0.00020272,2]
[388651476,1759300246248,-500.0,0.00020272,2]
[388651477,1759300246257,-1377.23,0.00020272,2]
[388651478,1759300246266,-465.43280443,0.00020272,2]
[388651479,1759300246275,-500.0,0.00020272,2]
[388651480,1759300246284,-500.0,0.00020272,2]
[388651481,1759300246293,-442.41638646,0.00020272,2]
[388651482,1759300246304,-659.67,0.00020272,2]
[388651483,1759300246313,-830.66,0.00020272,2]
[388651484,1759300246323,-500.0,0.00020272,2]
[388651485,1759300246332,-764.52,0.00020272,2]
[388651486,1759300246341,-500.0,0.00020272,2]
[388651487,1759300246350,-379.28874371,0.00020272,2]
[388651489,1759300246360,-500.0,0.00020272,2]
[388651490,1759300246369,-501.81,0.00020272,2]
[388651492,1759300246378,-500.0,0.00020272,2]
[388651494,1759300246387,-736.74,0.00020272,2]
[388651495,1759300246396,-500.0,0.00020272,2]
[388651496,1759300246405,-2706.95,0.00020272,2]
[388651497,1759300246414,-500.0,0.00020272,2]
[388651498,1759300246423,-598.42,0.00020272,2]
[388651499,1759300246432,-1415.76,0.00020272,2]
[388651500,1759300246441,-613.83,0.00020272,2]
[388651501,1759300246450,-500.0,0.00020272,2]
[388651502,1759300246459,-632.86,0.00020272,2]
[388651503,1759300246468,-1640.0,0.00020272,2]
[388651504,1759300246478,-500.0,0.00020272,2]
[388651505,1759300246487,-325.38264222,0.00020273,2]
[388651506,1759300246496,-501.41637164,0.00020273,2]
[388651507,1759300246505,-506.90597252,0.00020273,2]
[388651508,1759300246515,-500.68940117,0.00020273,2]
[388651509,1759300246524,-500.0,0.00020273,2]
[388651510,1759300246533,-502.5214135,0.00020273,2]
[388651511,1759300246543,-501.85314489,0.00020273,2]
[388651512,1759300246552,-566.1042104,0.00020273,2]
[388651513,1759300246562,-501.42193119,0.00020273,2]
[388651514,1759300246571,-500.58319121,0.00020273,2]
[388651515,1759300246580,-500.0,0.00020273,2]
[388651516,1759300246590,-198.0,0.00020273,2]
[388651517,1759300246599,-151.0,0.00020273,2]
[388651518,1759300246608,-500.0,0.00020273,2]
[388651519,1759300246618,-500.0,0.00020273,2]
[388651520,1759300246627,-480.0,0.00020273,2]
[388651521,1759300246638,-463.63470202,0.00020273,2]
[388651522,1759300246649,-713.88,0.00020273,2]
[388651523,1759300246659,-500.0,0.00020273,2]
[388651524,1759300246668,-500.0,0.00020273,2]
[388651525,1759300246677,-468.10516294,0.00020273,2]
[388651526,1759300246687,-500.0,0.00020273,2]
[388651527,1759300246696,-231.91479223,0.00020273,2]
[388651528,1759300246706,-500.0,0.00020273,2]
[388651529,1759300246715,-500.0,0.00020273,2]
[388651530,1759300246724,-464.6622955,0.00020273,2]
[388651531,1759300246738,-553.53,0.00020273,2]
[388651533,1759300246747,-500.0,0.00020273,2]
[388651535,1759300246756,-500.0,0.00020273,2]
[388651537,1759300246765,-294.18504365,0.00020273,2]
[388651539,1759300246775,-515.74,0.00020273,2]
[388651540,1759300246784,-500.0,0.00020273,2]
[388651541,1759300246793,-500.0,0.00020273,2]
[388651542,1759300246804,-472.04280519,0.00020273,2]
[388651543,1759300246814,-500.0,0.00020273,2]
[388651544,1759300246823,-500.0,0.00020273,2]
[388651545,1759300246832,-1250.0,0.00020273,2]
[388651546,1759300246841,-500.0,0.00020273,2]
[388651547,1759300246850,-369.50487386,0.00020273,2]
[388651548,1759300246859,-513.86,0.00020273,2]
[388651549,1759300246868,-500.0,0.00020273,2]
[388651550,1759300246877,-500.0,0.00020273,2]
[388651551,1759300246887,-500.0,0.00020273,2]
[388651552,1759300246896,-561.73,0.00020273,2]
[388651553,1759300246905,-500.0,0.00020273,2]
[388651554,1759300246914,-500.0,0.00020273,2]
[388651555,1759300246923,-500.0,0.00020273,2]
[388651556,1759300246932,-500.0,0.00020273,2]
[388651557,1759300246941,-500.0,0.00020273,2]
[388651558,1759300246950,-475.04087973,0.00020273,2]
[388651559,1759300246959,-500.0,0.00020273,2]
[388651560,1759300246968,-465.52716391,0.00020273,2]
[388651561,1759300246978,-469.11951789,0.00020273,2]
[388651562,1759300246988,-464.43589604,0.00020273,2]
[388651563,1759300246998,-469.47499561,0.00020273,2]
[388651564,1759300247007,-500.0,0.00020273,2]
[388651565,1759300247016,-500.0,0.00020273,2]
[388651566,1759300247025,-500.0,0.00020273,2]
[388651567,1759300247034,-500.0,0.00020273,2]
[388651568,1759300247043,-500.0,0.00020273,2]
[388651569,1759300247052,-500.0,0.00020273,2]
[388651570,1759300247062,-466.01671891,0.00020273,2]
[388651571,1759300247072,-500.0,0.00020273,2]
[388651572,1759300247081,-500.0,0.00020273,2]
[388651573,1759300247090,-500.0,0.00020273,2]
[388651574,1759300247100,-500.0,0.00020273,2]
[388651575,1759300247109,-500.0,0.00020273,2]
[388651576,1759300247117,-500.0,0.00020273,2]
[388651577,1759300247127,-463.67568708,0.00020273,2]
[388651578,1759300247135,-500.0,0.00020273,2]
[388651579,1759300247146,-500.0,0.00020273,2]
[388651580,1759300247155,-524.18,0.00020273,2]
[388651581,1759300247164,-500.0,0.00020273,2]
[388651582,1759300247173,-465.72622315,0.00020273,2]
[388651583,1759300247183,-500.0,0.00020273,2]
[388651584,1759300247192,-500.0,0.00020273,2]
[388651585,1759300247202,-500.0,0.00020273,2]
[388651586,1759300247211,-500.0,0.00020273,2]
[388651587,1759300247221,-646.25,0.00020273,2]
[388651588,1759300247231,-539.33,0.00020273,2]
[388651589,1759300247240,-500.0,0.00020273,2]
[388651590,1759300247250,-657.79,0.00020273,2]
[388651591,1759300247262,-500.0,0.00020273,2]
[388651592,1759300247272,-500.0,0.00020273,2]
[388651593,1759300247281,-500.0,0.00020273,2]
[388651594,1759300247290,-1606.71,0.00020273,2]
[388651595,1759300247299,-490.73030251,0.00020273,2]
[388651596,1759300247308,-500.0,0.00020273,2]
[388651597,1759300247317,-500.0,0.00020273,2]
[388651598,1759300247326,-500.0,0.00020273,2]
[388651599,1759300247336,-686.68,0.00020273,2]
[388651600,1759300247346,-2286.35,0.00020273,2]
[388651601,1759300247355,-1437.67,0.00020273,2]
[388651602,1759300247364,-500.0,0.00020273,2]
[388651603,1759300247373,-1047.18,0.00020273,2]
[388651604,1759300247382,-500.0,0.00020273,2]
[388651605,1759300247391,-1014.26,0.00020273,2]
[388651606,1759300247400,-500.0,0.00020273,2]
[388651607,1759300247485,-500.0,0.00020273,2]
[388651608,1759300247495,-500.0,0.00020273,2]
[388651609,1759300247504,-500.0,0.00020273,2]
[388651610,1759300247514,-2286.01,0.00020273,2]
[388651611,1759300247523,-464.85992535,0.00020273,2]
[388651612,1759300247533,-500.0,0.00020273,2]
[388651613,1759300247542,-2031.62,0.00020273,2]
[388651614,1759300247551,-500.0,0.00020273,2]
[388651615,1759300247560,-500.0,0.00020273,2]
[388651616,1759300247569,-500.0,0.00020273,2]
[388651617,1759300247579,-500.0,0.00020273,2]
[388651618,1759300247589,-151.0,0.000203,4]
[388651619,1759300247598,-151.0,0.000203,3]
[388651620,1759300247608,-500.0,0.00020342,2]
[388651621,1759300247618,-500.0,0.00020342,2]
[388651622,1759300247627,-500.0,0.00020342,2]
[388651623,1759300247637,-472.75553823,0.00020342,2]
[388651624,1759300247647,-500.0,0.00020372,2]
[388651625,1759300247657,-500.0,0.00020373,2]
[388651626,1759300247666,-500.0,0.00020373,2]
[388651627,1759300247675,-594.91083825,0.00020373,2]
[388651628,1759300247684,-500.0,0.00020373,2]
[388651629,1759300247694,-500.0,0.00020373,2]
[388651630,1759300247703,-518.76882972,0.00020373,2]
[388651631,1759300247712,-200.01019671,0.00020373,2]
[388651632,1759300247722,-500.0,0.00020373,2]
[388651633,1759300247734,-200.41102314,0.00020373,2]
[388651634,1759300247744,-500.0,0.00020375,2]
[388651635,1759300247753,-500.0,0.00020375,2]
[388651636,1759300247762,-500.0,0.00020375,2]
[388651637,1759300247772,-500.0,0.00020375,2]
[388651638,1759300247781,-279.1214851,0.00020375,2]
[388651639,1759300247791,-3293.798254,0.00020375,2]
[388651640,1759300247800,-567.05222851,0.00020375,2]
[388651641,1759300247810,-2995.14165046,0.00020376,2]
[388651642,1759300247820,-535.4134526,0.0002039,2]
[388651643,1759300247829,-1788.822576,0.00020395,2]
[388651644,1759300247839,-151.0,0.000204,3]
[388651645,1759300247848,-151.0,0.000204,4]
[388651646,1759300247857,-176.97330334,0.00020446,2]
[388651647,1759300247866,-500.0,0.00020473,2]
[388651648,1759300247875,-500.0,0.00020473,2]
[388651649,1759300247885,-500.0,0.00020473,2]
[388651650,1759300247904,-500.0,0.00020473,2]
[388651651,1759300247914,-500.0,0.00020473,2]
[388651652,1759300247924,-471.20805777,0.00020473,2]
[388651653,1759300247934,-500.0,0.00020473,2]
[388651654,1759300247943,-176.23590451,0.00020473,2]
[388651655,1759300247953,-485.14440651,0.00020476,2]
[388651656,1759300247962,-500.0,0.00020476,2]
[388651657,1759300247972,-500.0,0.00020476,2]
[388651658,1759300247982,-481.87849994,0.00020476,2]
[388651659,1759300247991,-480.0,0.00020476,2]
[388651660,1759300248001,-520.0,0.00020476,3]
[388651661,1759300248011,-500.0,0.00020476,2]
[388651662,1759300248020,-500.0,0.00020476,2]
[388651663,1759300248029,-500.0,0.00020476,2]
[388651664,1759300248039,-500.0,0.00020476,2]
[388651665,1759300248048,-500.0,0.00020476,2]
[388651666,1759300248058,-500.0,0.00020476,2]
[388651667,1759300248068,-500.0,0.00020476,2]
[388651668,1759300248078,-500.0,0.00020476,2]
[388651669,1759300248087,-482.87149061,0.00020476,2]
[388651670,1759300248097,-491.89105726,0.00020476,2]
[388651671,1759300248107,-176.37749408,0.00020476,2]
[388651672,1759300248116,-591.84,0.00020476,2]
[388651673,1759300248126,-813.58,0.00020476,2]
[388651674,1759300248135,-752.21,0.00020476,2]
[388651675,1759300248145,-490.81018149,0.00020476,2]
[388651676,1759300248154,-500.0,0.00020476,2]
[388651677,1759300248164,-500.0,0.00020476,2]
[388651678,1759300248173,-725.57,0.00020476,2]
[388651679,1759300248183,-423.91429953,0.00020476,2]
[388651680,1759300248192,-601.52,0.00020476,2]
[388651681,1759300248202,-500.0,0.00020476,2]
[388651682,1759300248211,-500.0,0.00020476,2]
[388651683,1759300248221,-500.0,0.00020476,2]
[388651684,1759300248230,-500.0,0.00020476,2]
[388651685,1759300248239,-500.0,0.00020476,2]
[388651686,1759300248249,-500.0,0.00020476,2]
[388651687,1759300248258,-481.8786227,0.00020476,2]